[Event "FIDE WCCC U12 2018"]
[Site "Santiago de Compostela"]
[Date "2018.11.05"]
[Round "2"]
[White "Bui, Bao Anh Le"]
[Black "Sethuraman, Sandeep"]
[Result "1-0"]
[ECO "C50"]
[WhiteElo "2101"]
[BlackElo "1837"]
[Annotator "RC"]
[PlyCount "51"]
[EventDate "2018.11.04"]
[EventType "swiss"]
[EventCountry "ESP"]
[SourceTitle "playchess.com"]
[Source "ChessBase"]
[SourceQuality "1"]
[TimeControl "40/5400+30:1800+30"]

1. e4 {[%emt 0:00:07]} e5 {[%emt 0:00:00]} 2. Nf3 {[%emt 0:00:23]} Nc6 {[%emt 0:00:00]} 3. Bc4 {[%emt 0:00:25]} Bc5 {[%emt 0:00:00]} 4. d3 {[%emt 0:00:05]} Nf6 {[%emt 0:00:48]} 5. Nbd2 {[%emt 0:00:06]} O-O {[%emt 0:00:47]} 6. c3 {[%emt 0:01:13]} d5 {[%emt 0:02:59]} 7. exd5 {[%emt 0:00:52]} Nxd5 {[%emt 0:01:05]} 8. O-O {[%emt 0:00:04]} h6 {[%emt 0:15:57]} 9. Re1 {[%emt 0:03:24]} Bg4 {[%emt 0:08:20]} 10. h3 {[%emt 0:02:17]} Bh5 {[%emt 0:13:07]} 11. Ne4 {[%emt 0:02:24]} Be7 {[%emt 0:00:58]} 12. Ng3 {[%emt 0:01:03]} Bxf3 {[%emt 0:05:04]} 13. Qxf3 {[%emt 0:00:08]} Nb6 {[%emt 0:05:46]} 14. Bb5 {[%emt 0:01:16]} Bf6 {[%emt 0:03:38]} 15. Nh5 {[%emt 0:13:18]} Bg5 {[%emt 0:05:42]} 16. Bxc6 {[%emt 0:05:08]} bxc6 {[%emt 0:00:14]} 17. Rxe5 {[%emt 0:01:07]} Qd6 {[%emt 0:05:26]} 18. d4 {[%emt 0:16:43]} Bxc1 {[%emt 0:02:50]} 19. Rxc1 {[%emt 0:01:13]} Nc4 {[%emt 0:02:05]} 20. Rc5 {[%emt 0:02:48]} Nxb2 {[%emt 0:04:01]} 21. Rxc6 {[%emt 0:02:56]} Qe7 {[%emt 0:03:30]} 22. Rc2 {[%emt 0:01:42]} Na4 {[%emt 0:02:58]} 23. Re2 {[%emt 0:02:59]} Qa3 {[%emt 0:06:45]} 24. Kh2 {[%emt 0:02:15]} g6 {[%emt 0:04:42]} 25. Qg4 {[%emt 0:01:08]} Kh7 {[%emt 0:01:08]} 26. Rxg6 {[%emt 0:01:41]} 1-0

[Event "FIDE WCCC U12 2018"]
[Site "Santiago de Compostela"]
[Date "2018.11.05"]
[Round "2"]
[White "Razafindratsima, Timothe"]
[Black "Perez Bolanos, David"]
[Result "1/2-1/2"]
[ECO "C50"]
[WhiteElo "2092"]
[BlackElo "1819"]
[Annotator "NA"]
[PlyCount "154"]
[EventDate "2018.11.04"]
[EventType "swiss"]
[EventCountry "ESP"]
[SourceTitle "playchess.com"]
[Source "ChessBase"]
[SourceQuality "1"]
[TimeControl "40/5400+30:1800+30"]

{[%evp 12,151,22,32767,24,21,18,4,61,49,75,52,82,79,78,87,82,85,87,71,97,61,56,60,44,45,53,54,32767,18,141,32767,32767,32767,32767,32767,32767,32767,32767,32767,32767,32767,32767,32767,32767,32767,104,111,97,122,122,108,129,105,113,81,32767,54,115,158,237,106,116,170,152,47,54,52,47,32767,32767,32767,50,32767,59,58,51,32767,32767,32767,32767,32767,32767,79,99,32767,18,20,28,20,20,8,27,32767,27,18,24,0,30,32767,32767,18,49,44,72,76,74,77,74,80,78,18,17,32767,32767,32767,32767,32767,17,8,32767,0,7,0,0,0,0,0,0,0,0,0,0,0,0,0,0,0,0,0,0,0]} 1. e4 e5 2. Nf3 Nc6 3. Bc4 Bc5 4. O-O Nf6 5. d3 a6 6. a4 d6 7. c3 Ba7 8. b4 {LiveBook: 33 Games} h6 {C54: Giuoco Piano: 4 c3 Nf6, main lines with 5 d4 and 5 d3} 9. Na3 g5 $146 ({Predecessor:} 9... O-O 10. Re1 Ne7 11. a5 Ng6 12. h3 Re8 {1-0 (72) Kovalenko,I (2664)-Volke,K (2461) Germany 2016}) 10. Be3 Bxe3 11. fxe3 Be6 12. Nd2 O-O 13. Qf3 Nd7 14. d4 Bxc4 15. Naxc4 Ne7 16. dxe5 Nxe5 17. Nxe5 dxe5 18. Nc4 Ng6 19. Rad1 Qe7 20. Qh3 Qe6 (20... Rad8 $14) 21. Qxe6 fxe6 22. Na5 b5 23. axb5 axb5 24. Rd7 Rxf1+ 25. Kxf1 Rf8+ 26. Kg1 Rf7 27. Rd8+ Rf8 28. Nc6 Rxd8 29. Nxd8 Ne7 30. Kf2 c6 31. Kf3 Kg7 32. Kg4 Kg6 33. Nxe6 h5+ 34. Kf3 Kf6 {[#]} 35. Nd8 $1 Kg6 (35... g4+ $16 {war nötig.} 36. Kg3 Kg5 37. Nf7+ Kf6) 36. Ke2 Kf6 37. Kd3 Kg6 38. Ne6 (38. h3 $16) 38... Kf6 39. Nc7 Nc8 $1 40. Na6 Ke6 41. Nc5+ Kd6 42. Nb3 Ke6 43. Nd2 Nd6 44. h3 Kf6 45. Nb3 Nc8 46. Na5 Na7 47. Ke2 Ke6 48. Nb3 Nc8 $1 49. Nc5+ Ke7 50. Nd3 Ke6 51. Kf3 Kf6 52. Nf2 Nb6 53. Ke2 Ke6 54. Nd3 Nc8 55. Nc1 Nd6 56. Kd3 Nc8 57. Ne2 Kf6 58. Ng3 Kg6 59. Nf5 Kf6 60. c4 Kg6 61. cxb5 (61. c5 $16) 61... cxb5 62. Ng3 Nd6 63. Ne2 Kf6 64. Nc3 Ke6 65. Nd5 Kf7 66. g3 Ke6 67. h4 g4 68. Nb6 Ke7 69. Nd5+ Ke6 70. Nc3 Ke7 71. Ne2 Ke6 72. Nc1 Nb7 73. Nb3 Nd6 74. Na5 Kd7 75. Nb3 Ke6 76. Nc5+ $11 Ke7 77. Na6 Kd7 1/2-1/2

[Event "FIDE WCCC U12 2018"]
[Site "Santiago de Compostela"]
[Date "2018.11.05"]
[Round "2"]
[White "Pavesi, Brando"]
[Black "Rusonik, Max"]
[Result "1-0"]
[ECO "A45"]
[WhiteElo "2073"]
[BlackElo "1814"]
[Annotator "NA RC"]
[PlyCount "61"]
[EventDate "2018.11.04"]
[EventType "swiss"]
[EventCountry "ESP"]
[SourceTitle "playchess.com"]
[Source "ChessBase"]
[SourceQuality "1"]
[TimeControl "40/5400+30:1800+30"]

1. d4 {[%emt 0:00:00]} Nf6 {[%emt 0:00:00]} 2. Bf4 {[%emt 0:00:19]} g6 {[%emt 0:02:03]} 3. Nc3 {[%emt 0:00:49]} d5 {[%emt 0:07:35] A45: Trompowsky Attack} (3... c5 4. dxc5 Qa5 5. a3 Qxc5 6. e4 Bg7 7. Nf3 d6 8. h3 O-O 9. Qd2 b6 10. O-O-O Bb7 11. Be3 {1-0 (48) Nabaty,T (2692)-Almasi,Z (2702) Batumi 2018}) 4. h4 {[%emt 0:01:26]} Bg7 {[%emt 0:04:52]} 5. e3 {[%emt 0:03:26]} c6 {[%emt 0:04:21]} 6. Nf3 {[%emt 0:09:51]} Qb6 {[%emt 0:12:51]} 7. Na4 $146 {[%emt 0:01:34]} ({Predecessor:} 7. Rb1 Bg4 8. Be2 Nbd7 9. b4 O-O 10. O-O Qd8 11. a4 Bxf3 12. Bxf3 {½-½ (34) Mousavi,S (2458)-Matinian,N (2506) Khomein 2018}) 7... Qa5+ {[%emt 0:03:09]} 8. c3 {[%emt 0:15:16]} Na6 {[%emt 0:00:26]} 9. Bxa6 {[%emt 0:00:30]} Qxa6 {[%emt 0:16:16]} 10. Nc5 {[%emt 0:10:27]} Qb6 {[%emt 0:11:38]} 11. Qb3 {[%emt 0:13:35]} Bf5 {[%emt 0:10:05]} 12. Ne5 {[%emt 0:07:24]} Ne4 {[%emt 0:00:46]} 13. Nxe4 {[%emt 0:00:30]} Bxe4 {[%emt 0:03:17]} 14. f3 {[%emt 0:16:00]} f6 15. fxe4 fxe5 {[%emt 0:01:34]} 16. dxe5 {[%emt 0:03:23]} Qxb3 {[%emt 0:01:17]} 17. axb3 {[%emt 0:00:12]} dxe4 {[%emt 0:00:02]} 18. Ra4 {[%emt 0:01:19]} Kf7 {[%emt 0:03:21]} 19. Rxe4 {[%emt 0:00:48]} Ke6 $1 {[%emt 0:00:08]} 20. Ke2 {[%emt 0:02:55]} b5 {[%emt 0:02:37]} 21. Rd1 {[%emt 0:04:51]} a5 {[%emt 0:07:34]} 22. Red4 {[%emt 0:02:18]} a4 {[%emt 0:02:33]} 23. bxa4 {[%emt 0:01:43]} Rxa4 {[%emt 0:00:02]} 24. Rd7 {[%emt 0:00:42]} Ra2 {[%emt 0:00:47]} 25. Rc7 {[%emt 0:00:33]} Rxb2+ {[%emt 0:01:46]} 26. Kf3 {[%emt 0:00:09]} b4 $2 {[%emt 0:01:12]} (26... Rf8 $16) 27. Rxc6+ {[%emt 0:00:18]} Kf7 {[%emt 0:00:13]} 28. e6+ {[%emt 0:00:34]} Kf6 {[%emt 0:00:17]} 29. Rd5 {[%emt 0:00:55]} g5 {[%emt 0:00:39]} 30. Rxg5 {[%emt 0:00:34]} Rf8 {[%emt 0:03:08]} 31. Be5# {[%emt 0:00:13] Rh8} 1-0

[Event "FIDE WCCC U12 2018"]
[Site "Santiago de Compostela"]
[Date "2018.11.05"]
[Round "2"]
[White "Ristic, Luka"]
[Black "Tashev, Aleksandar"]
[Result "*"]
[ECO "B38"]
[WhiteElo "1897"]
[BlackElo "2211"]
[Annotator "ChessBase"]
[PlyCount "159"]
[EventDate "2018.11.04"]
[EventType "swiss"]
[EventCountry "ESP"]
[SourceTitle "playchess.com"]
[Source "ChessBase"]
[SourceQuality "1"]
[TimeControl "40/5400+30:1800+30"]

1. e4 {[%emt 0:00:00]} c5 {[%emt 0:00:00]} 2. Nf3 {[%emt 0:00:00]} Nc6 {[%emt 0:00:00]} 3. d4 {[%emt 0:00:00]} cxd4 {[%emt 0:00:13]} 4. Nxd4 {[%emt 0:00:00]} g6 {[%emt 0:00:31]} 5. c4 {[%emt 0:00:12]} Bg7 {[%emt 0:00:26]} 6. Be3 {[%emt 0:00:13]} Nf6 {[%emt 0:01:09]} 7. Nc3 {[%emt 0:02:32]} d6 {[%emt 0:01:24]} 8. f3 {[%emt 0:00:11]} O-O {[%emt 0:01:45]} 9. Be2 {[%emt 0:00:16]} Nd7 {[%emt 0:02:11]} 10. Nb3 {[%emt 0:04:17]} b6 {[%emt 0:03:18]} 11. O-O {[%emt 0:02:55]} Nc5 {[%emt 0:01:28]} 12. Qd2 {[%emt 0:04:03]} Be6 {[%emt 0:08:44]} 13. Nd5 {[%emt 0:03:04]} Rc8 {[%emt 0:02:23]} 14. Nd4 {[%emt 0:02:57]} Bd7 {[%emt 0:09:39]} 15. Rad1 {[%emt 0:04:06]} Ne6 {[%emt 0:01:34]} 16. Nb5 {[%emt 0:01:31]} Rb8 {[%emt 0:02:09]} 17. Bh6 {[%emt 0:07:20]} a6 {[%emt 0:05:40]} 18. Bxg7 {[%emt 0:00:05]} Kxg7 {[%emt 0:00:37]} 19. Qc3+ {[%emt 0:00:06]} f6 {[%emt 0:01:34]} 20. Na3 {[%emt 0:00:12]} Be8 {[%emt 0:07:22]} 21. Qe3 {[%emt 0:04:21]} Bf7 {[%emt 0:01:28]} 22. f4 {[%emt 0:06:08]} Nc5 {[%emt 0:03:01]} 23. Rf3 {[%emt 0:05:56]} Na7 {[%emt 0:08:57]} 24. Rh3 {[%emt 0:03:27]} a5 {[%emt 0:03:23]} 25. Bd3 {[%emt 0:10:32]} Bxd5 26. exd5 {[%emt 0:00:28]} Re8 {[%emt 0:11:31]} 27. f5 {[%emt 0:01:01]} g5 {[%emt 0:00:34]} 28. Qe2 {[%emt 0:01:19]} Rh8 {[%emt 0:02:10]} 29. Qh5 {[%emt 0:00:23]} Nxd3 {[%emt 0:01:28]} 30. Qh6+ {[%emt 0:01:07]} Kg8 31. Rhxd3 {[%emt 0:00:29]} Qf8 {[%emt 0:03:29]} 32. Qh3 {[%emt 0:00:08]} h5 {[%emt 0:00:39]} 33. Re1 {[%emt 0:00:57]} Rh7 {[%emt 0:00:46]} 34. Qe3 {[%emt 0:00:42]} Qc8 {[%emt 0:00:24]} 35. Qe6+ {[%emt 0:03:11]} Kf8 {[%emt 0:00:42]} 36. Qxc8+ {[%emt 0:02:02]} Rxc8 {[%emt 0:00:07]} 37. Rb3 {[%emt 0:00:07]} Rb8 {[%emt 0:00:17]} 38. Re6 {[%emt 0:00:20]} g4 {[%emt 0:00:45]} 39. c5 {[%emt 0:02:19]} Nc8 {[%emt 0:01:51]} 40. c6 {[%emt 0:00:00]} Rg7 {[%emt 0:00:00]} 41. Nb5 {[%emt 0:02:50]} Rg5 {[%emt 0:01:26]} 42. Nd4 {[%emt 0:00:08]} Ke8 {[%emt 0:00:44]} 43. Rbe3 {[%emt 0:00:36]} Kf7 {[%emt 0:01:05]} 44. a4 {[%emt 0:02:24]} Ra8 {[%emt 0:00:37]} 45. Kf2 {[%emt 0:01:46]} Ra7 {[%emt 0:00:13]} 46. Kg3 {[%emt 0:00:25]} Ra8 {[%emt 0:00:05]} 47. Kf4 {[%emt 0:00:20]} Ra7 {[%emt 0:00:05]} 48. Nb5 {[%emt 0:00:22]} Ra8 {[%emt 0:00:04]} 49. Rc3 {[%emt 0:01:22]} Rg8 {[%emt 0:00:08]} 50. Rce3 {[%emt 0:03:08]} Rh8 {[%emt 0:00:16]} 51. Kg3 {[%emt 0:02:35]} Rg8 {[%emt 0:00:12]} 52. Kf4 {[%emt 0:02:12]} Rh8 {[%emt 0:00:13]} 53. Rb3 {[%emt 0:00:19]} Rg8 {[%emt 0:00:15]} 54. Na3 {[%emt 0:00:08]} Ra6 {[%emt 0:00:31]} 55. Nc4 {[%emt 0:00:39]} Rh8 {[%emt 0:00:08]} 56. Rb5 {[%emt 0:00:08]} Ke8 {[%emt 0:00:23]} 57. Re3 {[%emt 0:01:27]} Kd8 {[%emt 0:00:00]} 58. Reb3 {[%emt 0:06:36]} Kc7 {[%emt 0:00:21]} 59. Na3 {[%emt 0:00:30]} Kd8 {[%emt 0:00:30]} 60. Nc2 {[%emt 0:00:30]} Ke8 {[%emt 0:00:15]} 61. Nd4 {[%emt 0:00:30]} Rg8 {[%emt 0:00:30]} 62. Ne6 {[%emt 0:00:20]} Kf7 {[%emt 0:00:10]} 63. Kg3 {[%emt 0:00:25]} Rh8 {[%emt 0:00:40]} 64. Nf4 {[%emt 0:00:05]} Ke8 {[%emt 0:00:49]} 65. Re3 {[%emt 0:00:36]} Kf7 {[%emt 0:00:04]} 66. Re4 {[%emt 0:00:57]} Ra7 {[%emt 0:00:27]} 67. Kh4 {[%emt 0:00:34]} Ra8 {[%emt 0:00:50]} 68. Nxh5 {[%emt 0:01:48]} Rh7 69. Kxg4 {[%emt 0:00:53]} Na7 {[%emt 0:00:16]} 70. Rxb6 {[%emt 0:00:09]} Rg8+ {[%emt 0:00:06]} 71. Kh4 {[%emt 0:06:12]} Rxg2 {[%emt 0:00:19]} 72. Rxe7+ {[%emt 0:00:02]} Kxe7 {[%emt 0:00:13]} 73. Rb7+ {[%emt 0:00:03]} Kd8 {[%emt 0:00:09]} 74. Rxh7 {[%emt 0:00:05]} Rxh2+ {[%emt 0:00:06]} 75. Kg3 {[%emt 0:00:05]} Rxb2 {[%emt 0:00:15]} 76. Rxa7 {[%emt 0:00:12]} Rb3+ {[%emt 0:00:04]} 77. Kg4 {[%emt 0:00:35]} Rb4+ {[%emt 0:00:03]} 78. Kf3 {[%emt 0:00:17]} Rxa4 {[%emt 0:00:22]} 79. Nxf6 {[%emt 0:00:05]} Ra3+ {[%emt 0:00:08]} 80. Kf4 {[%emt 0:00:05]} *

[Event "FIDE WCCC U12 2018"]
[Site "Santiago de Compostela"]
[Date "2018.11.05"]
[Round "2"]
[White "Djurovic, Peko"]
[Black "Chasin, Nico"]
[Result "0-1"]
[ECO "C77"]
[WhiteElo "1887"]
[BlackElo "2189"]
[Annotator "NA"]
[PlyCount "98"]
[EventDate "2018.11.04"]
[EventType "swiss"]
[EventCountry "ESP"]
[SourceTitle "playchess.com"]
[Source "ChessBase"]
[SourceQuality "1"]
[TimeControl "40/5400+30:1800+30"]

{[%evp 12,97,0,32767,32767,32767,32767,2,-32,-14,32767,32767,32767,32767,32767,32767,-13,-31,32767,32767,32767,32767,-10,-36,-19,-75,-53,-70,-38,-39,-8,32767,32767,32767,32767,32767,32767,-112,-56,-52,-51,-61,-61,-50,-54,-55,-50,32767,32767,-4,-19,-22,-8,0,0,-27,0,32767,32767,32767,32767,-214,32767,32767,32767,32767,32767,32767,32767,-152,-115,32767,-12,-379,-441,-493,-715,-785,-402,-1084,32767,32767,-4618,-5967,-29990,-29990,32767,-29999]} 1. e4 {[%emt 0:00:00]} e5 {[%emt 0:00:00]} 2. Nf3 {[%emt 0:00:00]} Nc6 {[%emt 0:00:00]} 3. Bb5 {[%emt 0:00:00]} a6 {[%emt 0:00:00]} 4. Ba4 {[%emt 0:00:03]} Nf6 {[%emt 0:00:38]} 5. d4 {[%emt 0:01:24]} exd4 {[%emt 0:00:09]} 6. O-O {[%emt 0:00:09]} Be7 {[%emt 0:02:51]} 7. e5 {[%emt 0:00:12]} Ne4 {[%emt 0:00:07]} 8. Re1 {[%emt 0:00:06]} Nc5 {[%emt 0:00:05]} 9. Bxc6 {[%emt 0:00:08]} dxc6 {[%emt 0:00:05]} 10. Nxd4 {[%emt 0:00:10]} Ne6 {[%emt 0:00:06] C84: Closed Ruy Lopez: Unusual White 6th moves} 11. Nf5 {[%emt 0:04:32]} Qxd1 {[%emt 0:00:08]} 12. Rxd1 {[%emt 0:00:07]} Bf8 {[%emt 0:00:04]} 13. Nc3 {[%emt 0:02:55]} (13. Be3 h5 14. Ng3 Nc5 15. Nc3 h4 16. Nge2 h3 17. g3 Bg4 18. Rd4 {1-0 (41) Gashimov,V (2733)-Tkachiev,V (2636) Warsaw 2010}) 13... Bd7 {[%emt 0:08:45]} 14. Be3 {[%emt 0:07:01] LiveBook: 4 Games} O-O-O {[%emt 0:06:24]} 15. Ne4 {[%emt 0:07:07]} h6 {[%emt 0:06:15]} 16. a4 $146 {[%emt 0:09:01]} ({Predecessor:} 16. Rd2 g6 17. Nfg3 Bg7 18. Nf6 {0-1 (77) Erdelyi,Z (2380)-Solomon,K (2369) Budapest 2009}) 16... a5 {[%emt 0:14:34]} 17. c3 {[%emt 0:06:03]} c5 {[%emt 0:05:04]} 18. c4 {[%emt 0:09:45]} g6 {[%emt 0:07:11]} 19. Nfg3 {[%emt 0:01:38]} Be7 {[%emt 0:02:04]} 20. Nc3 $1 {[%emt 0:05:07]} f5 {[%emt 0:02:43]} 21. Nd5 {[%emt 0:11:54]} Bf8 {[%emt 0:01:34]} 22. f4 {[%emt 0:01:57]} Bc6 {[%emt 0:00:51]} 23. b3 {[%emt 0:01:34]} Nd4 {[%emt 0:00:06]} 24. Nc3 {[%emt 0:11:35]} Be7 {[%emt 0:02:35]} 25. Rab1 $1 {[%emt 0:07:16]} b6 {[%emt 0:01:13]} 26. Nb5 {[%emt 0:01:56]} Nxb5 {[%emt 0:01:06]} 27. axb5 {[%emt 0:00:11]} Bb7 {[%emt 0:00:24]} 28. Rbc1 {[%emt 0:05:17]} c6 {[%emt 0:01:01]} 29. bxc6 {[%emt 0:02:09]} Bxc6 {[%emt 0:00:13]} 30. Ne2 $1 {[%emt 0:00:15]} Be4 {[%emt 0:00:50]} 31. Nc3 Rxd1+ {[%emt 0:00:48]} 32. Nxd1 {[%emt 0:04:45]} Rd8 {[%emt 0:02:47]} 33. Nc3 Rd3 34. Kf2 {[%emt 0:00:37]} Kd7 {[%emt 0:08:05]} 35. Ke2 {[%emt 0:01:51]} Ke6 {[%emt 0:00:37]} 36. g4 $2 {[%emt 0:00:43]} (36. Bd2 $11) 36... g5 {[%emt 0:00:43]} 37. Nxe4 {[%emt 0:00:31]} fxe4 {[%emt 0:00:49]} 38. Rd1 {[%emt 0:00:27]} gxf4 {[%emt 0:01:36]} 39. Bxf4 {[%emt 0:00:20]} Rxb3 {[%emt 0:00:10]} 40. Bxh6 {[%emt 0:00:00]} a4 (40... Kxe5 $19 41. Rd5+ Ke6) 41. g5 {[%emt 0:01:29] [#]} Rh3 {[%emt 0:07:53]} ({Much worse is} 41... Kxe5 $6 42. g6 $11) (41... Kf5 $1 $17 42. h4 a3) 42. Rb1 $2 {[%emt 0:06:42]} (42. Rg1 $1 $11 Rxh2+ 43. Ke3) 42... Kxe5 {[%emt 0:04:55]} 43. Rxb6 {[%emt 0:08:40]} a3 {[%emt 0:00:31]} 44. Bg7+ {[%emt 0:03:31]} Kf4 {[%emt 0:00:25]} 45. g6 {[%emt 0:02:59]} (45. Rh6 $142 Re3+ 46. Kd1) 45... Rxh2+ {[%emt 0:00:56]} 46. Ke1 {[%emt 0:01:35]} Bh4+ {[%emt 0:00:43]} 47. Kf1 {[%emt 0:00:57]} Kf3 {[%emt 0:05:13]} 48. Kg1 {[%emt 0:03:09]} Rh3 {[%emt 0:00:08]} 49. Kf1 {[%emt 0:04:21]} Rh1# {[%emt 0:00:08]} 0-1

[Event "FIDE WCCC U12 2018"]
[Site "Santiago de Compostela"]
[Date "2018.11.05"]
[Round "2"]
[White "Moll Gener, Joan"]
[Black "Chyzy, Jakub"]
[Result "0-1"]
[ECO "C56"]
[WhiteElo "1862"]
[BlackElo "2136"]
[Annotator "ChessBase"]
[PlyCount "198"]
[EventDate "2018.11.04"]
[EventType "swiss"]
[EventCountry "ESP"]
[SourceTitle "playchess.com"]
[Source "ChessBase"]
[SourceQuality "1"]
[TimeControl "40/5400+30:1800+30"]

1. e4 {[%emt 0:00:00]} e5 {[%emt 0:00:00]} 2. Nf3 {[%emt 0:00:00]} Nc6 {[%emt 0:00:00]} 3. Bc4 {[%emt 0:01:28]} Nf6 {[%emt 0:00:00]} 4. d4 {[%emt 0:01:03]} exd4 {[%emt 0:00:20]} 5. O-O {[%emt 0:00:21]} Nxe4 {[%emt 0:00:23]} 6. Re1 {[%emt 0:00:12]} d5 {[%emt 0:00:15]} 7. Bxd5 {[%emt 0:00:13]} Qxd5 {[%emt 0:00:07]} 8. Nc3 {[%emt 0:00:07]} Qh5 {[%emt 0:00:27]} 9. Nxe4 {[%emt 0:00:30]} Be6 {[%emt 0:00:14]} 10. Bg5 {[%emt 0:02:27]} Bd6 {[%emt 0:01:02]} 11. Bf6 {[%emt 0:04:24]} Bxh2+ {[%emt 0:00:33]} 12. Nxh2 {[%emt 0:00:23]} Qxd1 {[%emt 0:00:05]} 13. Raxd1 {[%emt 0:00:35]} gxf6 {[%emt 0:00:08]} 14. Nxf6+ {[%emt 0:00:59]} Ke7 {[%emt 0:00:22]} 15. Ne4 {[%emt 0:04:41]} Rad8 {[%emt 0:11:28]} 16. Nf3 {[%emt 0:02:56]} b6 {[%emt 0:18:14]} 17. Rd2 {[%emt 0:08:17]} Rd7 {[%emt 0:05:16]} 18. Ng3 {[%emt 0:09:11]} Rhd8 {[%emt 0:05:17]} 19. Ng5 {[%emt 0:09:34]} Kf6 {[%emt 0:01:32]} 20. N3e4+ {[%emt 0:02:45]} Kg7 {[%emt 0:13:03]} 21. Nxe6+ {[%emt 0:05:46]} fxe6 {[%emt 0:00:06]} 22. Ng5 {[%emt 0:00:47]} Kf6 {[%emt 0:00:27]} 23. Rxe6+ {[%emt 0:05:23]} Kxg5 {[%emt 0:00:11]} 24. Rxc6 {[%emt 0:00:14]} Re8 {[%emt 0:03:21]} 25. f3 {[%emt 0:06:22]} h5 {[%emt 0:20:48]} 26. Kf2 {[%emt 0:05:22]} h4 {[%emt 0:02:27]} 27. Rc4 {[%emt 0:04:01]} c5 {[%emt 0:00:49]} 28. b4 {[%emt 0:02:51]} Rd5 {[%emt 0:02:30]} 29. bxc5 {[%emt 0:04:02]} bxc5 30. Rd3 {[%emt 0:03:23]} Rde5 {[%emt 0:04:48]} 31. Rd2 {[%emt 0:00:43]} Rd5 {[%emt 0:03:17]} 32. Ra4 {[%emt 0:04:55]} Re7 {[%emt 0:00:43]} 33. c4 {[%emt 0:02:08]} Rde5 {[%emt 0:01:46]} 34. Ra3 {[%emt 0:00:58]} Kf4 {[%emt 0:00:37]} 35. Ra6 {[%emt 0:01:02]} R5e6 {[%emt 0:01:37]} 36. Ra5 {[%emt 0:00:36]} Rc6 {[%emt 0:01:00]} 37. Rd3 {[%emt 0:02:38]} a6 {[%emt 0:00:37]} 38. Rda3 {[%emt 0:00:32]} Ree6 {[%emt 0:00:48]} 39. Rd3 {[%emt 0:01:07]} Re3 {[%emt 0:01:29]} 40. Rxc5 {[%emt 0:00:00]} Rxd3 {[%emt 0:00:00]} 41. Rxc6 {[%emt 0:02:51]} Rd2+ {[%emt 0:01:50]} 42. Kf1 {[%emt 0:03:36]} Rxa2 {[%emt 0:02:37]} 43. Re6 {[%emt 0:01:22]} d3 {[%emt 0:03:02]} 44. Re4+ {[%emt 0:00:29]} Kg5 {[%emt 0:01:21]} 45. Rd4 {[%emt 0:00:55]} Rd2 {[%emt 0:01:17]} 46. Rg4+ {[%emt 0:01:36]} Kh5 {[%emt 0:00:59]} 47. g3 {[%emt 0:03:17]} hxg3 {[%emt 0:21:40]} 48. Rxg3 {[%emt 0:00:29]} a5 {[%emt 0:00:38]} 49. f4 {[%emt 0:04:00]} a4 {[%emt 0:01:07]} 50. Ke1 {[%emt 0:03:32]} Re2+ {[%emt 0:00:34]} 51. Kd1 {[%emt 0:01:27]} a3 {[%emt 0:00:08]} 52. Rxd3 {[%emt 0:00:33]} a2 {[%emt 0:00:09]} 53. Kxe2 {[%emt 0:01:26]} a1=Q {[%emt 0:00:07]} 54. c5 {[%emt 0:00:19]} Qa2+ {[%emt 0:01:08]} 55. Kf3 {[%emt 0:00:51]} Kg6 {[%emt 0:00:56]} 56. Ke4 {[%emt 0:00:33]} Qc4+ {[%emt 0:00:35]} 57. Rd4 {[%emt 0:00:19]} Qxc5 {[%emt 0:00:12]} 58. Rd5 {[%emt 0:00:13]} Qc2+ {[%emt 0:00:30]} 59. Kf3 {[%emt 0:00:52]} Qc6 {[%emt 0:00:59]} 60. Ke4 {[%emt 0:00:09]} Kf6 {[%emt 0:00:14]} 61. Kd4 {[%emt 0:01:29]} Qa4+ {[%emt 0:00:18]} 62. Ke3 {[%emt 0:00:09]} Qa3+ {[%emt 0:00:25]} 63. Ke4 {[%emt 0:00:13]} Qa8 {[%emt 0:01:41]} 64. Kd4 {[%emt 0:00:10]} Qa4+ {[%emt 0:00:24]} 65. Ke3 {[%emt 0:00:11]} Qa3+ {[%emt 0:00:34]} 66. Ke4 {[%emt 0:00:05]} Qb4+ {[%emt 0:00:07]} 67. Ke3 {[%emt 0:00:28]} Qe1+ {[%emt 0:00:07]} 68. Kd4 {[%emt 0:00:13]} Qd2+ {[%emt 0:00:45]} 69. Ke4 {[%emt 0:00:07]} Qe2+ {[%emt 0:00:12]} 70. Kd4 {[%emt 0:00:06]} Qf3 {[%emt 0:00:42]} 71. f5 {[%emt 0:00:30]} Qf4+ {[%emt 0:00:22]} 72. Kc5 {[%emt 0:00:10]} Qc7+ {[%emt 0:00:20]} 73. Kd4 {[%emt 0:00:40]} Qb6+ {[%emt 0:00:12]} 74. Kc4 {[%emt 0:00:18]} Qc6+ {[%emt 0:00:21]} 75. Kd4 {[%emt 0:00:03]} Qb6+ {[%emt 0:00:37]} 76. Kc4 {[%emt 0:00:06]} Qa6+ {[%emt 0:00:16]} 77. Kd4 {[%emt 0:00:09]} Qc6 {[%emt 0:00:06]} 78. Rc5 {[%emt 0:00:24]} Qa4+ {[%emt 0:01:05]} 79. Kc3 {[%emt 0:00:15]} Qe4 {[%emt 0:00:46]} 80. Kb3 {[%emt 0:00:48]} Qb7+ {[%emt 0:00:25]} 81. Kc4 {[%emt 0:00:06]} Qa8 {[%emt 0:01:22]} 82. Kb5 {[%emt 0:01:22]} Qb7+ {[%emt 0:00:32]} 83. Kc4 {[%emt 0:00:11]} Ke7 {[%emt 0:00:25]} 84. Rd5 {[%emt 0:00:53]} Qa6+ {[%emt 0:00:19]} 85. Kd4 {[%emt 0:00:20]} Qb6+ {[%emt 0:00:38]} 86. Ke4 {[%emt 0:00:14]} Kf6 {[%emt 0:00:29]} 87. Kd3 {[%emt 0:00:26]} Kg5 {[%emt 0:00:43]} 88. Ke4 {[%emt 0:00:48]} Qb4+ {[%emt 0:00:44]} 89. Kd3 {[%emt 0:01:46]} Qf4 {[%emt 0:00:17]} 90. Rc5 {[%emt 0:01:40]} Kf6 {[%emt 0:00:18]} 91. Rd5 {[%emt 0:00:38]} Ke7 {[%emt 0:00:10]} 92. Kc3 {[%emt 0:00:34]} Qe4 {[%emt 0:00:13]} 93. Rb5 {[%emt 0:00:26]} Kd6 {[%emt 0:00:18]} 94. f6 {[%emt 0:00:48]} Kc6 {[%emt 0:00:22]} 95. f7 {[%emt 0:00:46]} Qf3+ {[%emt 0:00:21]} 96. Kb4 {[%emt 0:00:09]} Qf4+ {[%emt 0:00:24]} 97. Ka5 {[%emt 0:00:11]} Qd2+ {[%emt 0:01:24]} 98. Ka4 {[%emt 0:00:24]} Qa2+ {[%emt 0:00:07]} 99. Kb4 {[%emt 0:00:15]} Qb2+ {[%emt 0:00:05]} 0-1